fUST/lending_fUST_20250828
["ID","MTS","AMOUNT","RATE_DAILY","PERIOD"]
[381869256,1756379448158,-480.0,0.00019452,2]
[381869257,1756379448168,-480.0,0.00019452,2]
[381869258,1756379448178,-480.0,0.00019452,2]
[381869259,1756379448189,-1009.5,0.00019452,2]
[381869260,1756379448198,-480.0,0.00019452,2]
[381869261,1756379448208,-522.45,0.00019452,2]
[381869262,1756379448217,-1550.85,0.00019452,2]
[381869263,1756379448228,-480.0,0.00019452,2]
[381869264,1756379448238,-674.11,0.00019452,2]
[381869265,1756379448248,-1276.29,0.00019452,2]
[381869266,1756379448257,-480.0,0.00019452,2]
[381869267,1756379448268,-480.0,0.00019452,2]
[381869268,1756379448279,-550.96,0.00019452,2]
[381869269,1756379448288,-480.0,0.00019452,2]
[381869270,1756379448298,-480.0,0.00019452,2]
[381869271,1756379448307,-494.98,0.00019452,2]
[381869272,1756379448317,-1552.52,0.00019452,2]
[381869273,1756379448326,-875.67,0.00019452,2]
[381869274,1756379448335,-1183.02,0.00019452,2]
[381869275,1756379448345,-480.0,0.00019452,2]
[381869276,1756379448356,-2929.48,0.00019452,2]
[381869277,1756379448365,-480.0,0.00019452,2]
[381869278,1756379448374,-480.0,0.00019452,2]
[381869279,1756379448384,-838.26,0.00019452,2]
[381869280,1756379448393,-480.0,0.00019452,2]
[381869281,1756379448402,-2204.73,0.00019452,2]
[381869282,1756379448412,-636.61,0.00019452,2]
[381869283,1756379448421,-1724.19,0.00019452,2]
[381869284,1756379448430,-511.19,0.00019452,2]
[381869285,1756379448439,-480.0,0.00019452,2]
[381869286,1756379448448,-480.0,0.00019452,2]
[381869287,1756379448458,-480.0,0.00019452,2]
[381869288,1756379448467,-566.7,0.00019452,2]
[381869289,1756379448476,-948.92,0.00019452,2]
[381869290,1756379448486,-480.0,0.00019452,2]
[381869291,1756379448495,-480.0,0.00019452,2]
[381869292,1756379448505,-480.0,0.00019452,2]
[381869293,1756379448516,-776.93,0.00019452,2]
[381869294,1756379448526,-480.0,0.00019452,2]
[381869295,1756379448536,-480.0,0.00019452,2]
[381869296,1756379448546,-480.0,0.00019452,2]
[381869297,1756379448556,-480.0,0.00019452,2]
[381869298,1756379448566,-234.76499632,0.00019452,2]
[381869299,1756379448577,-480.0,0.00019452,2]
[381869300,1756379448587,-480.0,0.00019452,2]
[381869301,1756379448597,-802.25,0.00019452,2]
[381869302,1756379448607,-480.0,0.00019452,2]
[381869303,1756379448617,-480.0,0.00019452,2]
[381869304,1756379448627,-480.0,0.00019452,2]
[381869305,1756379448637,-480.0,0.00019452,2]
[381869306,1756379448646,-480.0,0.00019452,2]
[381869307,1756379448656,-480.0,0.00019452,2]
[381869308,1756379448665,-3650.44,0.00019452,2]
[381869309,1756379448675,-480.0,0.00019452,2]
[381869310,1756379448891,-252.03977,0.00019452,2]
[381869311,1756379448901,-480.0,0.00019452,2]
[381869312,1756379448911,-480.0,0.00019452,2]
[381869313,1756379448921,-600.23,0.00019452,2]
[381869314,1756379448930,-1598.3,0.00019452,2]
[381869315,1756379448939,-787.76,0.00019452,2]
[381869316,1756379448948,-757.65,0.00019452,2]
[381869317,1756379448957,-2844.06,0.00019452,2]
[381869318,1756379448966,-480.0,0.00019452,2]
[381869319,1756379448976,-1845.12,0.00019452,2]
[381869320,1756379448985,-1238.89,0.00019452,2]
[381869321,1756379448993,-480.0,0.00019452,2]
[381869322,1756379449002,-480.0,0.00019452,2]
[381869323,1756379449011,-480.0,0.00019452,2]
[381869324,1756379449020,-535.24,0.00019452,2]
[381869325,1756379449030,-1529.64,0.00019452,2]
[381869326,1756379449039,-151.0,0.00019452,2]
[381869327,1756379449049,-151.0,0.00019452,2]
[381869328,1756379449058,-480.0,0.00019452,2]
[381869329,1756379449067,-480.0,0.00019452,2]
[381869330,1756379449077,-520.64,0.00019452,2]
[381869331,1756379449086,-602.28,0.00019452,2]
[381869332,1756379449096,-762.17,0.00019452,2]
[381869333,1756379449105,-571.5,0.00019452,2]
[381869334,1756379449114,-449.94805635,0.00019452,2]
[381869335,1756379449124,-480.0,0.00019452,2]
[381869336,1756379449133,-2832.8,0.00019452,2]
[381869337,1756379449142,-520.58509844,0.00019452,2]
[381869338,1756379449151,-639.33,0.00019452,2]
[381869339,1756379449160,-867.93,0.00019452,2]
[381869340,1756379449170,-480.0,0.00019452,2]
[381869341,1756379449183,-480.0,0.00019452,2]
[381869342,1756379449194,-480.0,0.00019452,2]
[381869343,1756379449204,-645.59,0.00019452,2]
[381869344,1756379449213,-480.0,0.00019452,2]
[381869345,1756379449223,-480.0,0.00019452,2]
[381869346,1756379449232,-2302.24,0.00019452,2]
[381869347,1756379449242,-480.0,0.00019452,2]
[381869348,1756379449251,-3721.01,0.00019452,2]
[381869349,1756379449260,-480.0,0.00019452,2]
[381869350,1756379449270,-969.9,0.00019452,2]
[381869351,1756379449281,-151.0,0.00019452,2]
[381869352,1756379449292,-480.0,0.00019452,2]
[381869353,1756379449302,-151.0,0.00019452,2]
[381869354,1756379449312,-211.664057,0.00019452,2]
[381869355,1756379449322,-2270.54,0.00019452,2]
[381869356,1756379449332,-486.06,0.00019452,2]
[381869357,1756379449342,-368.00354687,0.00019452,2]
[381869358,1756379449351,-579.1,0.00019452,2]
[381869359,1756379449361,-504.26427535,0.00019452,2]
[381869360,1756379449371,-574.99,0.00019452,2]
[381869361,1756379449380,-579.51,0.00019452,2]
[381869362,1756379449391,-480.0,0.00019452,2]
[381869363,1756379449401,-480.0,0.00019452,2]
[381869364,1756379449410,-722.02,0.00019452,2]
[381869365,1756379449420,-480.0,0.00019452,2]
[381869366,1756379449430,-1051.47,0.00019452,2]
[381869367,1756379449440,-929.02,0.00019452,2]
[381869368,1756379449450,-480.0,0.00019452,2]
[381869369,1756379449460,-1110.41,0.00019452,2]
[381869370,1756379449470,-480.0,0.00019452,2]
[381869371,1756379449480,-5279.35,0.00019452,2]
[381869372,1756379449490,-480.0,0.00019452,2]
[381869373,1756379449500,-480.0,0.00019452,2]
[381869374,1756379449510,-480.0,0.00019452,2]
[381869375,1756379449520,-795.49,0.00019452,2]
[381869376,1756379449531,-151.0,0.00019452,2]
[381869377,1756379449541,-151.0,0.00019452,2]
[381869378,1756379449551,-491.96,0.00019452,2]
[381869379,1756379449561,-480.0,0.00019452,2]
[381869380,1756379449571,-480.0,0.00019452,2]
[381869381,1756379449582,-151.0,0.00019452,2]
[381869382,1756379449592,-482.77,0.00019452,2]
[381869383,1756379449602,-338.68559655,0.00019452,2]
[381869384,1756379449613,-480.0,0.00019452,2]
[381869385,1756379449623,-480.0,0.00019452,2]
[381869386,1756379449632,-1646.09,0.00019452,2]
[381869387,1756379449641,-480.0,0.00019452,2]
[381869388,1756379449651,-480.0,0.00019452,2]
[381869389,1756379449661,-480.0,0.00019452,2]
[381869390,1756379449670,-1119.55,0.00019452,2]
[381869391,1756379449680,-480.0,0.00019452,2]
[381869392,1756379449689,-480.0,0.00019452,2]
[381869393,1756379449699,-151.0,0.00019452,2]
[381869394,1756379449709,-151.0,0.00019452,2]
[381869395,1756379449719,-480.0,0.00019452,2]
[381869396,1756379449728,-521.7,0.00019452,2]
[381869397,1756379449737,-480.0,0.00019452,2]
[381869398,1756379449747,-2558.51,0.00019452,2]
[381869399,1756379449756,-480.0,0.00019452,2]
[381869400,1756379449765,-151.0,0.00019452,2]
[381869401,1756379449774,-1141.39,0.00019452,2]
[381869402,1756379449783,-151.0,0.00019452,2]
[381869403,1756379449792,-480.0,0.00019452,2]
[381869404,1756379449801,-664.28,0.00019452,2]
[381869405,1756379449811,-497.83,0.00019452,2]
[381869406,1756379449820,-480.0,0.00019452,2]
[381869407,1756379449831,-480.0,0.00019452,2]
[381869408,1756379449841,-196.145383,0.00019452,2]
[381869409,1756379449849,-196.145383,0.00019452,2]
[381869410,1756379449858,-12710.44222334,0.00019471,2]
[381869411,1756379449866,-160.0,0.00019472,2]
[381869412,1756379449874,-217.27834477,0.00019472,2]
[381869413,1756379449883,-529.67291817,0.00019472,2]
[381869414,1756379449890,-160.0,0.00019472,2]
[381869415,1756379449899,-417.15472785,0.00019472,2]
[381869416,1756379449908,-160.0,0.00019472,2]
[381869417,1756379449917,-160.0,0.00019472,2]
[381869418,1756379449927,-845.47023312,0.00019472,2]
[381869419,1756379449937,-160.0,0.00019472,2]
[381869420,1756379449946,-160.0,0.00019472,2]
[381869421,1756379449956,-160.0,0.00019472,2]
[381869422,1756379449966,-216.18903889,0.00019472,2]
[381869423,1756379449975,-160.0,0.00019472,2]
[381869424,1756379449985,-425.52029335,0.00019472,2]
[381869425,1756379449994,-160.0,0.00019472,2]
[381869426,1756379450003,-232.64478309,0.00019472,2]
[381869427,1756379450012,-500.0,0.00019473,2]
[381869428,1756379450022,-500.0,0.00019473,2]
[381869429,1756379450031,-200.90239755,0.00019473,2]
[381869430,1756379450040,-500.0,0.00019473,2]
[381869431,1756379450050,-500.0,0.00019473,2]
[381869432,1756379450059,-500.0,0.00019473,2]
[381869433,1756379450068,-500.0,0.00019473,2]
[381869434,1756379450078,-500.0,0.00019473,2]
[381869435,1756379450087,-500.0,0.00019473,2]
[381869436,1756379450096,-500.0,0.00019473,2]
[381869437,1756379450105,-165.91496876,0.00019473,2]
[381869438,1756379450115,-500.0,0.00019473,2]
[381869439,1756379450124,-500.0,0.00019473,2]
[381869440,1756379450133,-613.92623303,0.00019473,2]
[381869441,1756379450142,-500.0,0.00019473,2]
[381869442,1756379450151,-500.0,0.00019473,2]
[381869443,1756379450161,-151.0,0.00019473,2]
[381869444,1756379450171,-151.0,0.00019473,2]
[381869445,1756379450182,-455.58429989,0.00019484,2]
[381869446,1756379450192,-45130.70447228,0.00019489,2]
[381869447,1756379525864,-279.54054092,0.00018063,2]
[381869448,1756379528703,-151.34458855,0.00018063,2]
[381869449,1756379530389,-179.249725,0.00018063,2]
[381869450,1756379533345,-328.89369545,0.00018063,2]
[381869451,1756379536296,-193.76885521,0.00018063,2]
[381869452,1756379538019,-207.8141755,0.00018063,2]
[381869453,1756379539826,-283.69449493,0.00018063,2]
[381869454,1756379541590,-158.73558834,0.00018063,2]
[381869455,1756379544322,-299.63553772,0.00018063,2]
[381869456,1756379547572,-73.32279838,0.00018063,2]
[381869457,1756379569830,150.5,0.0002191,120]
[381869458,1756379570278,150.5,0.000219,120]
[381869459,1756379570722,150.5,0.0002189,120]
[381869460,1756379571063,548.400137,0.00013699,2]
[381869461,1756379571163,150.5,0.0002469,120]
[381869462,1756379571605,150.5,0.0002468,120]
[381869463,1756379572052,150.5,0.0002467,120]
[381869466,1756379633498,800.0,0.00027,120]
[381869467,1756379706689,-175.23044524,0.00017878,2]
[381869469,1756379709642,-176.74773164,0.00017878,2]
[381869470,1756379711974,-315.77251102,0.00017878,2]
[381869471,1756379718134,-194.10088652,0.00017878,2]
[381869472,1756379720010,-185.99466714,0.00017878,2]
[381869473,1756379722628,-187.49038957,0.00017878,2]
[381869474,1756379724947,-185.14443571,0.00017878,2]
[381869475,1756379728926,-180.0,0.00017878,2]
[381869476,1756379731140,-284.18481971,0.00017878,2]
[381869477,1756379731801,184.0,0.00025533,120]
[381869478,1756379733418,184.0,0.0002681,120]
[381869479,1756379733574,-221.49222127,0.00017878,2]
[381869480,1756379736541,-49.84189218,0.00017878,2]
[381869485,1756379887341,-272.33020414,0.00017878,2]
[381869486,1756379890721,-288.41585567,0.00017878,2]
[381869487,1756379895188,-381.933449,0.00017878,2]
[381869488,1756379897580,-422.82178038,0.00017878,2]
[381869489,1756379899327,-257.76423412,0.00017878,2]
[381869490,1756379901633,-173.58055904,0.00017878,2]
[381869491,1756379903259,-189.60509885,0.00017878,2]
[381869492,1756379905081,-169.5488188,0.00017878,2]
[381869494,1756380026401,2000.0,0.00027397,120]
[381869495,1756380066329,-234.26951389,0.00017904,2]
[381869496,1756380067739,-200.9269448,0.00017904,2]
[381869497,1756380069440,-228.92505178,0.00017904,2]
[381869498,1756380072136,-313.69747955,0.00017904,2]
[381869499,1756380076573,-216.20289512,0.00017904,2]
[381869500,1756380078664,-222.09753898,0.00017904,2]
[381869501,1756380080214,-269.35076599,0.00017904,2]
[381869502,1756380083034,-252.31783154,0.00017904,2]
[381869503,1756380087442,-176.94009849,0.00017904,2]
[381869504,1756380089153,-41.27187986,0.00017904,2]
[381869505,1756380100488,1977.24,0.00030216,60]
[381869506,1756380143422,819.651,0.00018063,30]
[381869507,1756380246368,-159.71473598,0.00017904,2]
[381869508,1756380248797,-178.41417825,0.00017904,2]
[381869509,1756380250675,-167.36254907,0.00017904,2]
[381869510,1756380252947,-168.048268,0.00017904,2]
[381869511,1756380257431,-277.11128141,0.00017904,2]
[381869512,1756380261631,-384.89009887,0.00017904,2]
[381869513,1756380263269,-202.77507879,0.00017904,2]
[381869514,1756380265199,-246.94704811,0.00017904,2]
[381869515,1756380268793,-258.67802865,0.00017904,2]
[381869516,1756380270418,-112.05873287,0.00017904,2]
[381869517,1756380289591,150.5,0.0002191,120]
[381869518,1756380290037,150.5,0.000219,120]
[381869519,1756380290478,295.89,0.0002189,120]
[381869520,1756380305694,-168.95891923,0.00017,2]
[381869521,1756380307533,-427.05468043,0.00017,2]
[381869522,1756380309671,-152.0,0.00017,2]
[381869524,1756380311939,-162.04837204,0.00017,2]
[381869525,1756380315439,-247.77730052,0.00017,2]
[381869528,1756380320585,-183.28086761,0.00017,2]
[381869529,1756380323354,-217.5503815,0.00017,2]
[381869531,1756380325157,-180.27992352,0.00017,2]
[381869532,1756380329917,-205.82930249,0.00017,2]
[381869533,1756380333564,-300.0,0.00017,2]
[381869534,1756380336025,-189.11977243,0.00017,2]
[381869535,1756380337624,-358.80633682,0.00017,2]
[381869536,1756380339663,-236.5250992,0.00017,2]
[381869537,1756380342322,-301.59513655,0.00017,2]
[381869538,1756380344072,-58.72214983,0.00017,2]
[381869540,1756380416123,-285.51682947,0.00018528,2]
[381869541,1756380416144,-17.26085954,0.000187,2]
[381869542,1756380463920,1197.54071816,0.00030216,120]
[381869543,1756380487164,860.42431193,0.00030218,120]
[381869544,1756380493038,869.30453841,0.00030218,120]
[381869545,1756380493799,978.67815087,0.00030218,120]
[381869546,1756380508121,903.05965154,0.00030218,60]
[381869547,1756380510373,857.1836163,0.00030218,120]
[381869548,1756380511223,792.72803844,0.00030218,120]
[381869549,1756380511329,700.8447899,0.00030218,120]
[381869551,1756380518213,1170.06732282,0.00030218,60]
[381869555,1756380520785,202.52863572,0.00030218,120]
[381869556,1756380521417,520.98013,0.00013699,2]
[381869558,1756380525432,156.33636103,0.00030218,60]
[381869559,1756380525953,711.59066777,0.00026,120]
[381869560,1756380527608,1007.49955271,0.00030218,120]
[381869561,1756380527990,780.44161042,0.00030218,120]
[381869562,1756380528029,999.999999,0.00030218,120]
[381869666,1756380638426,-714.98096524,0.000186,2]
[381869668,1756380638436,-268.13869794,0.000186,2]
[381869670,1756380638446,-184.81743533,0.000187,2]
[381869672,1756380638456,-219.16813508,0.00018814,2]
[381869674,1756380638466,-293.97897784,0.00018847,2]
[381869676,1756380638477,-167.01821681,0.00018847,2]
[381869678,1756380638487,-225.62660493,0.00018847,2]
[381869680,1756380638496,-500.0,0.00018847,2]
[381869682,1756380638506,-243.86008317,0.00018847,2]
[381869684,1756380638516,-363.05980575,0.00018847,2]
[381869687,1756380638527,-365.80295611,0.00018847,2]
[381869689,1756380638536,-500.0,0.00018847,2]
[381869691,1756380638546,-500.0,0.00018847,2]
[381869693,1756380638556,-500.0,0.00018847,2]
[381869695,1756380638566,-258.43115596,0.00018847,2]
[381869697,1756380638575,-500.0,0.00018847,2]
[381869699,1756380638585,-500.0,0.00018847,2]
[381869701,1756380638594,-639.10949187,0.00018847,2]
[381869703,1756380638605,-500.0,0.00018847,2]
[381869705,1756380638614,-500.0,0.00018847,2]
[381869707,1756380638623,-564.15322007,0.00018847,2]
[381869709,1756380638633,-247.45811205,0.00018847,2]
[381869711,1756380638645,-1200.0,0.00018848,2]
[381869713,1756380638656,-300.0,0.00018848,2]
[381869715,1756380638666,-300.0,0.00018848,2]
[381869717,1756380638676,-372.14421023,0.00018849,2]
[381869719,1756380638687,-17948.73752627,0.0001885,2]
[381869721,1756380638696,-1690.14043742,0.00019,2]
[381869723,1756380638706,-2068.7538591,0.0001907,2]
[381869725,1756380638716,-956.79787092,0.00019078,2]
[381869727,1756380638727,-829.7123159,0.00019078,2]
[381869729,1756380638738,-187.78006525,0.00019166,2]
[381869731,1756380638747,-442.51,0.00019168,3]
[381869733,1756380638758,-221.25,0.00019168,3]
[381869735,1756380638767,-663.8,0.00019168,3]
[381869737,1756380638777,-400.0,0.0001917,2]
[381869739,1756380638787,-500.0,0.00019173,2]
[381869741,1756380638797,-500.0,0.00019173,2]
[381869743,1756380638807,-500.0,0.00019173,2]
[381869745,1756380638818,-500.0,0.00019173,2]
[381869748,1756380638828,-500.0,0.00019173,2]
[381869750,1756380638838,-500.0,0.00019173,2]
[381869752,1756380638848,-480.0,0.00019178,2]
[381869754,1756380638859,-480.0,0.00019178,2]
[381869756,1756380638869,-480.0,0.00019178,2]
[381869758,1756380638879,-480.0,0.00019178,2]
[381869760,1756380638890,-480.0,0.00019178,2]
[381869762,1756380638899,-480.0,0.00019178,2]
[381869764,1756380638909,-480.0,0.00019178,2]
[381869766,1756380638919,-480.0,0.00019178,2]
[381869768,1756380638929,-242.89462632,0.00019178,2]
[381869769,1756380638938,-480.0,0.00019178,2]
[381869770,1756380638949,-480.0,0.00019178,2]
[381869772,1756380638960,-480.0,0.00019178,2]
[381869775,1756380638971,-480.0,0.00019178,2]
[381869777,1756380638981,-480.0,0.00019178,2]
[381869779,1756380638991,-480.0,0.00019178,2]
[381869781,1756380639003,-480.0,0.00019178,2]
[381869783,1756380639013,-480.0,0.00019178,2]
[381869785,1756380639024,-480.0,0.00019178,2]
[381869787,1756380639035,-480.0,0.00019178,2]
[381869789,1756380639045,-480.0,0.00019178,2]
[381869791,1756380639055,-480.0,0.00019178,2]
[381869793,1756380639065,-480.0,0.00019178,2]
[381869795,1756380639075,-480.0,0.00019178,2]
[381869798,1756380639085,-480.0,0.00019178,2]
[381869800,1756380639096,-480.0,0.00019178,2]
[381869802,1756380639107,-480.0,0.00019178,2]
[381869804,1756380639117,-480.0,0.00019178,2]
[381869806,1756380639127,-242.76100885,0.00019178,2]
[381869809,1756380639145,-237.23899115,0.00019178,2]
[381869811,1756380639154,-480.0,0.00019178,2]
[381869813,1756380639164,-405.67515679,0.00019178,2]
[381869815,1756380639174,-480.0,0.00019178,2]
[381869817,1756380639183,-198.61226601,0.00019178,2]
[381869819,1756380639195,-281.38773399,0.00019178,2]
[381869821,1756380639205,-480.0,0.00019178,2]
[381869823,1756380639215,-480.0,0.00019178,2]
[381869825,1756380639224,-480.0,0.00019178,2]
[381869828,1756380639235,-480.0,0.00019178,2]
[381869829,1756380639245,-431.50523187,0.00019178,2]
[381869831,1756380639255,-480.0,0.00019178,2]
[381869834,1756380639265,-480.0,0.00019178,2]
[381869836,1756380639275,-537.06239515,0.00019178,2]
[381869837,1756380639285,-480.0,0.00019178,2]
[381869838,1756380639294,-480.0,0.00019178,2]
[381869840,1756380639304,-480.0,0.00019178,2]
[381869842,1756380639314,-480.0,0.00019178,2]
[381869843,1756380639324,-480.0,0.00019178,2]
[381869844,1756380639333,-480.0,0.00019178,2]
[381869845,1756380639344,-480.0,0.00019178,2]
[381869846,1756380639354,-480.0,0.00019178,2]
[381869847,1756380639364,-480.0,0.00019178,2]
[381869848,1756380639373,-480.0,0.00019178,2]
[381869849,1756380639384,-480.0,0.00019178,2]
[381869850,1756380639394,-480.0,0.00019178,2]
[381869851,1756380639404,-790.31,0.00019178,2]
[381869852,1756380639413,-480.0,0.00019178,2]
[381869853,1756380639423,-480.0,0.00019178,2]
[381869854,1756380639433,-480.0,0.00019178,2]
[381869855,1756380639442,-329.5286095,0.00019178,2]
[381869856,1756380639451,-480.0,0.00019178,2]
[381869857,1756380639462,-480.0,0.00019178,2]
[381869858,1756380639472,-480.0,0.00019178,2]
[381869859,1756380639482,-480.0,0.00019178,2]
[381869860,1756380639492,-480.0,0.00019178,2]
[381869861,1756380639502,-480.0,0.00019178,2]
[381869862,1756380639512,-821.82,0.00019178,2]
[381869863,1756380639522,-480.0,0.00019178,2]
[381869864,1756380639535,-480.0,0.00019178,2]
[381869865,1756380639544,-480.0,0.00019178,2]
[381869866,1756380639554,-480.0,0.00019178,2]
[381869867,1756380639564,-480.0,0.00019178,2]
[381869868,1756380639574,-480.0,0.00019178,2]
[381869869,1756380639583,-641.43,0.00019178,2]
[381869870,1756380639593,-480.0,0.00019178,2]
[381869871,1756380639604,-480.0,0.00019178,2]
[381869872,1756380639613,-480.0,0.00019178,2]
[381869873,1756380639623,-480.0,0.00019178,2]
[381869874,1756380639633,-480.0,0.00019178,2]
[381869875,1756380639645,-480.0,0.00019178,2]
[381869876,1756380639655,-480.0,0.00019178,2]
[381869877,1756380639665,-1023.18,0.00019178,2]
[381869878,1756380639674,-480.0,0.00019178,2]
[381869879,1756380639684,-480.0,0.00019178,2]
[381869880,1756380639694,-563.04,0.00019178,2]
[381869881,1756380639704,-480.0,0.00019178,2]
[381869882,1756380639714,-492.26,0.00019178,2]
[381869883,1756380639724,-480.0,0.00019178,2]
[381869884,1756380639734,-480.0,0.00019178,2]
[381869885,1756380639744,-480.0,0.00019178,2]
[381869886,1756380639754,-480.0,0.00019178,2]
[381869887,1756380639763,-554.91,0.00019178,2]
[381869888,1756380639774,-480.0,0.00019178,2]
[381869889,1756380639784,-480.0,0.00019178,2]
[381869890,1756380639795,-480.0,0.00019178,2]
[381869891,1756380639805,-480.0,0.00019178,2]
[381869892,1756380639817,-480.0,0.00019178,2]
[381869893,1756380639827,-480.0,0.00019178,2]
[381869894,1756380639836,-480.0,0.00019178,2]
[381869895,1756380639848,-480.0,0.00019178,2]
[381869896,1756380639858,-480.0,0.00019178,2]
[381869897,1756380639868,-480.0,0.00019178,2]
[381869898,1756380639878,-546.46,0.00019178,2]
[381869899,1756380639888,-480.0,0.00019178,2]
[381869900,1756380639898,-480.0,0.00019178,2]
[381869901,1756380639908,-480.0,0.00019178,2]
[381869902,1756380639918,-480.0,0.00019178,2]
[381869903,1756380639929,-480.0,0.00019178,2]
[381869904,1756380639939,-480.0,0.00019178,2]
[381869905,1756380639950,-504.19,0.00019178,2]
[381869906,1756380639960,-480.0,0.00019178,2]
[381869907,1756380639970,-480.0,0.00019178,2]
[381869908,1756380639980,-480.0,0.00019178,2]
[381869909,1756380639990,-405.25386971,0.00019178,2]
[381869910,1756380639999,-480.0,0.00019178,2]
[381869912,1756380640010,-480.0,0.00019178,2]
[381869914,1756380640020,-480.0,0.00019178,2]
[381869916,1756380640030,-480.0,0.00019178,2]
[381869918,1756380640041,-480.0,0.00019178,2]
[381869920,1756380640050,-480.0,0.00019178,2]
[381869922,1756380640060,-951.3,0.00019178,2]
[381869924,1756380640070,-480.0,0.00019178,2]
[381869926,1756380640080,-469.96350434,0.00019178,2]
[381869928,1756380640090,-480.0,0.00019178,2]
[381869930,1756380640100,-246.57774969,0.00019178,2]
[381869933,1756380640114,-233.42225031,0.00019178,2]
[381869934,1756380640124,-561.26,0.00019178,2]
[381869936,1756380640134,-480.0,0.00019178,2]
[381869938,1756380640144,-287.47688059,0.00019178,2]
[381869992,1756380641090,-236.94516292,0.00019178,2]
[381870008,1756380643720,-33.64196544,0.00019178,2]
[381870026,1756380793379,277.54387822,0.00030215,60]
[381870031,1756381236788,340.25,0.00027397,120]
[381870033,1756381608989,-182.39227835,0.00017803,2]
[381870034,1756381611819,-155.18115816,0.00017803,2]
[381870035,1756381624604,1000.0,0.00027397,120]
[381870036,1756381640804,1500.0,0.00027397,120]
[381870215,1756381705895,1500.0,0.00027397,120]
[381870233,1756381716401,1500.0,0.00027397,120]
[381870239,1756381723439,1500.0,0.00027397,120]
[381870249,1756381734799,1500.0,0.00027397,120]
[381870256,1756381744940,1500.0,0.00027397,120]
[381870257,1756381776722,494.931123,0.00013699,2]
[381870346,1756382131780,185.0,0.00025218,120]
[381870350,1756382265102,-265.65462878,0.00017939,2]
[381870351,1756382267826,-215.33420831,0.00017939,2]
[381870352,1756382272466,-347.74685263,0.00017858,2]
[381870353,1756382275318,-167.48170131,0.00017858,2]
[381870354,1756382279930,-221.56378016,0.00017858,2]
[381870355,1756382282054,-237.1030353,0.00017858,2]
[381870356,1756382285477,-198.1046306,0.00017858,2]
[381870357,1756382285500,-37.13585583,0.00017939,2]
[381870360,1756382288465,-240.34537122,0.00017939,2]
[381870361,1756382291258,-161.9370605,0.00017939,2]
[381870362,1756382294554,-251.59287536,0.00017939,2]
[381870363,1756382422473,-330.83932719,0.00017939,2]
[381870364,1756382424247,-317.21845871,0.00017939,2]
[381870365,1756382426280,-296.41184731,0.00017939,2]
[381870366,1756382431820,-289.42879766,0.00017939,2]
[381870367,1756382434360,-275.76286768,0.00017939,2]
[381870368,1756382435984,-216.50532427,0.00017939,2]
[381870369,1756382438670,-131.19230415,0.00017939,2]
[381870370,1756382442546,-287.43387345,0.0001776,2]
[381870371,1756382444799,-156.92739621,0.0001776,2]
[381870373,1756382482279,-204.82746532,0.0001776,2]
[381870374,1756382485743,-374.65611712,0.0001776,2]
[381870375,1756382488427,-162.85703326,0.00017739,2]
[381870376,1756382493450,-6.4120031,0.00017739,2]
[381870377,1756382493475,-378.41416739,0.0001776,2]
[381870378,1756382495853,-190.7112023,0.0001776,2]